Workbook

Sheet Serviceability
C3: Serviceability Calculator (Commercial)
D4: RedZed Lending Solutions Pty Ltd (ACL 311128)
D6: Information can be entered in the clear boxes, the grey boxes contain RedZed calculations.
D8: Application name (mandatory)
D10: Income Table | G10: Gross Annual | L10: Net Monthly
D12: Company Income (if applicable)
D13: *Serviceability for Company Applicants will be based on the Company & Guarantors joint ability to service all debts
D15: Company Applicants NPBT - Alt Doc | E15: Once all company expenses and liabilities paid | L15: =G15/12 -> 0 | O15: Table_Company_Tax_Rate
D17: Personal Income | F17: Select Household
D18: Applicant / Guarantor 1 | E18: PAYG or Alt Doc | L18: ='Tax Calc'!I5 -> 0
D19: Applicant / Guarantor 2 | E19: PAYG or Alt Doc | L19: ='Tax Calc'!I6 -> 0
D20: Applicant / Guarantor 3 | E20: PAYG or Alt Doc | L20: ='Tax Calc'!I7 -> 0
D21: Applicant / Guarantor 4 | E21: PAYG or Alt Doc | L21: ='Tax Calc'!I8 -> 0
F23: Select Household | G23: Enter Source of Income
D24: Applicant / Guarantor 1 | E24: Other Regular Monthly Income (eg - welfare payments, investments)
D25: Applicant / Guarantor 2 | E25: Other Regular Monthly Income (eg - welfare payments, investments)
D26: Applicant / Guarantor 3 | E26: Other Regular Monthly Income (eg - welfare payments, investments)
D27: Applicant / Guarantor 4 | E27: Other Regular Monthly Income (eg - welfare payments, investments)
D29: Rental Income | E29: Existing | L29: =G29*0.8/12 -> 0
D30: Rental Income | E30: New | L30: =G30*0.8/12 -> 0
D32: Total Monthly Net Income | L32: =SUM(L18,L19,L20,L21,L24,L25,L26,L27,L29,L30,L15) -> 0
D35: Monthly Living Expenses
D37: Applicants(s) declared expenses - mandatory
D38: Ongoing (combined) standard monthly living expenses declared by applicant(s)
D40: RedZed Living Allowance | F40: Select Household
D41: Number of adults - household 1 | H41: =Tables!E88 -> 
D42: Number of dependant children - household 1
D43: Number of adults - household 2 | H43: =Tables!E89 -> 
D44: Number of dependant children - household 2
D46: Total Monthly Living Expenses used in assessment | L46: =MAX(SUM(L41:L44),G38) -> 0
D49: Available Income | L49: =Tables!B315 -> 0
D51: Commitments | L51: Monthly
D53: RedZed Loan Applied For
G54: Loan Amount | H54: Years | I54: Interest Only Term | J54: Interest Rate
E55: Loan 1 | L55: =Tables!B323 -> 0
E56: Loan 2 | L56: =Tables!B324 -> 0
E57: Loan 3 | L57: =Tables!B325 -> 0
D58: Note: An interest rate buffer is automatically applied by the calculator. You do not need to apply a separate buffer.
G59: Financier
D60: Existing Loans | E60: Loan 1 - Existing Secured
E61: Loan 2 - Existing Secured
E62: Loan 3 - Existing Unsecured
E63: Loan 4 - Existing Unsecured
G65: Total Credit Limits
D66: Credit Cards | H66: (@3.82%) | L66: =G66*3.82% -> 0
D68: Maintenance / On Going Rent
D70: Other Fixed Monthly Repayments
D72: Total Monthly Commitments | L72: =SUM(L55:L70) -> 0
D75: This Serviceability Calculator is intended as a guide only and no loan approval can be assumed on the basis of the results of this calculator. All applications remain subject to the normal credit and approval criteria of RedZed Lending Solutions Pty Ltd. | I75: Fail | L75: =IFERROR('Serviceability Calc'!C22,0) -> 0
D78: * If Commercial Loan LVR is greater than 70%, serviceability needs to be greater than 1.25%. In this case please call RedZed on 1300 722 462 to discuss your options.
D80: I, the Introducer, confirm that reasonable enquiries about the applicant(s) current and ongoing financial situation have been undertaken and are reflected in the figures entered into this calculation. The applicants(s) have been given sufficient time to consider the declared monthly living expenses amount which has been derived following due consideration.
M85: ='Version Control'!I1 -> V10.27 240315

Sheet Tables (hidden)
A2: Tax
G3: Flood Levy
A4: Wages Over | B4: Not to Exceed | C4: Tax Rate | G4: Taxable income | H4: Flood levy on this income
A5: 0 | B5: 18200 | C5: 0 | G5: $0 to $50,000 | H5: Nil | I5: 0 | J5: 50000 | K5: 0
A6: =B5+1 -> 18201 | B6: 45000 | C6: 0.19 | D6: =D5+C5*(B5-A5) -> 0 | G6: $50,001 to $100,000 | H6: Half a cent for each $1 over $50,000 | I6: 50001 | J6: 100000 | K6: 0 | L6: =(J6-J5)*K6 -> 0
A7: =B6+1 -> 45001 | B7: 120000 | C7: 0.325 | D7: =ROUNDUP(D6+C6*(B6-A6),0) -> 5092 | G7: Over $100,000 | H7: $250 plus 1c for each $1 over $100,000 | I7: =J6+1 -> 100001 | K7: 0
A8: 120001 | B8: 180000 | C8: 0.37 | D8: =ROUNDUP(D7+C7*(B7-A7),0) -> 29467
A9: 180001 | C9: 0.45 | D9: =ROUNDUP(D8+C8*(B8-A8),0) -> 51667
A12: Medicare Levy
G13: Taxable income | H13: Tax on this income
A14: 0 | B14: 16284 | C14: 0 | E14: not currently used | G14: 0 - $18,200 | H14: Nil
A15: 16284 | B15: 17604 | C15: 0.2 | G15: $18,201 - $37,000 | H15: 19c for each $1 over $18,200
A16: 17604+ | C16: 0.02 | G16: $37,001 - $90,000 | H16: $3,572 plus 32.5c for each $1 over $37,000
G17: $90,001 - $180,000 | H17: $17,547 plus 37c for each $1 over $87,000
G18: $180,001 and over | H18: $54,547 plus 45c for each $1 over $180,000
A20: Company Tax
A22: Rate | B22: 0.25
A26: Living Expenses
A28: First Adult | B28: 17880
A29: Subsequent Adult | B29: 8940
A30: Each Child | B30: 6720
A33: APR Buffer | B33: 0.02
A34: Minimum Rate | B34: 0.07
A36: RedZed Loan Applied For: Repayment With Buffer | C36: Buffered % | D36: Minimum % | E36: Rate % | F36: Buffer % | G36: Buffered % | H36: Total Term | I36: Interest Only Term | J36: Net Term | K36: Amount
A37: Buffered Loan 1 | B37: =IF(Serviceability!H55=0,0,-PMT((D37)/12,J37*12,Serviceability!G55)) -> 0 | C37: =G37 -> 0.02 | D37: =IF(C37>=$B$34,C37,$B$34) -> 0.07 | E37: =Serviceability!J55 -> 0 | F37: =$B$33 -> 0.02 | G37: =E37+F37 -> 0.02 | H37: =Serviceability!H55 -> 0 | I37: =Serviceability!I55 -> 0 | J37: =H37-I37 -> 0 | K37: =Serviceability!G55 -> 0
A38: Buffered Loan 2 | B38: =IF(Serviceability!H56=0,0,-PMT((D38)/12,J38*12,Serviceability!G56)) -> 0 | C38: =G38 -> 0.02 | D38: =IF(C38>=$B$34,C38,$B$34) -> 0.07 | E38: =Serviceability!J56 -> 0 | F38: =$B$33 -> 0.02 | G38: =E38+F38 -> 0.02 | H38: =Serviceability!H56 -> 0 | I38: =Serviceability!I56 -> 0 | J38: =H38-I38 -> 0 | K38: =Serviceability!G56 -> 0
A39: Buffered Loan 3 | B39: =IF(Serviceability!H57=0,0,-PMT((D39)/12,J39*12,Serviceability!G57)) -> 0 | C39: 0.02 | D39: 0.07 | E39: =Serviceability!J57 -> 0 | F39: 0.02 | G39: 0.02 | H39: =Serviceability!H57 -> 0 | I39: =Serviceability!I57 -> 0 | J39: 0 | K39: =Serviceability!G57 -> 0
A42: Existing Loan: Repayment With Buffer
A43: Buffered Loan 1 | B43: 0.2 | C43: =Serviceability!L60*(1+Tables!B43) -> 0 | G43: =Serviceability!L60 -> 0 | H43: =Serviceability!E60 -> Loan 1 - Existing Secured
A44: Buffered Loan 2 | B44: 0.2 | C44: =Serviceability!L61*(1+Tables!B44) -> 0 | G44: =Serviceability!L61 -> 0 | H44: =Serviceability!E61 -> Loan 2 - Existing Secured
A47: Additional Fees for Serviceability
A48: Fees - Loan 1 | B48: 0.001 | C48: =IF(Serviceability!L55=0,0,(B48*Serviceability!G55)/12) -> 0 | D48: Monthly Account Keeping Fee Commercial
A49: Fees - Loan 2 | B49: 0.001 | C49: =IF(Serviceability!L56=0,0,(B49*Serviceability!G56)/12) -> 0 | D49: Monthly Account Keeping Fee Commercial
A50: Fees - Loan 3 | B50: 0.001 | C50: =IF(Serviceability!L57=0,0,(B50*Serviceability!G57)/12) -> 0 | D50: Monthly Account Keeping Fee Commercial
A53: Column1 | B53: Single Adult | C53: Single Adult + 1 Dependant | D53: Single Adult + 2 Dependants | E53: Single Adult + 3 Dependants | F53: Single Adult + 4 Dependants | G53: Single Adult + 5 Dependants | H53: Single Adult + 6 Dependants | I53: Couple | J53: Couple + 1 Dependant | K53: Couple + 2 Dependants | L53: Couple + 3 Dependants | M53: Couple + 4 Dependants | N53: Couple + 5 Dependants | O53: Couple + 6 Dependants
A54: Income Range ($) | B54: Proposed Benchmark | C54: Proposed Benchmark | D54: Proposed Benchmark | E54: Proposed Benchmark | F54: Proposed Benchmark | G54: Proposed Benchmark | H54: Proposed Benchmark | I54: Proposed Benchmark | J54: Proposed Benchmark | K54: Proposed Benchmark | L54: Proposed Benchmark | M54: Proposed Benchmark | N54: Proposed Benchmark | O54: Proposed Benchmark
A55: 0 - 21,000 | B55: =251*52.2/12 -> 1091.85 | I55: - | J55: - | K55: - | L55: - | M55: - | N55: - | O55: -
A56: 21,001 - 32,000 | B56: =265*52.2/12 -> 1152.75 | C56: =354*52.2/12 -> 1539.9 | D56: =445*52.2/12 -> 1935.75 | E56: - | F56: - | G56: - | H56: - | I56: =487*52.2/12 -> 2118.45 | J56: - | K56: - | L56: - | M56: - | N56: - | O56: -
A57: 32,001 - 43,000 | B57: =280*52.2/12 -> 1218 | C57: =369*52.2/12 -> 1605.15 | D57: =460*52.2/12 -> 2001 | E57: =552*52.2/12 -> 2401.2 | F57: =(552+93)*52.2/12 -> 2805.75 | G57: - | H57: - | I57: =502*52.2/12 -> 2183.7 | J57: =578*52.2/12 -> 2514.3 | K57: =636*52.2/12 -> 2766.6 | L57: - | M57: - | N57: - | O57: -
A58: 43,001 - 53,000 | B58: =301*52.2/12 -> 1309.35 | C58: =391*52.2/12 -> 1700.85 | D58: =481*52.2/12 -> 2092.35 | E58: =574*52.2/12 -> 2496.9 | F58: =(574+93)*52.2/12 -> 2901.45 | G58: - | H58: - | I58: =523*52.2/12 -> 2275.05 | J58: =599*52.2/12 -> 2605.65 | K58: =657*52.2/12 -> 2857.95 | L58: =720*52.2/12 -> 3132 | M58: - | N58: - | O58: -
A59: 53,001 - 64,000 | B59: =338*52.2/12 -> 1470.3 | C59: =428*52.2/12 -> 1861.8 | D59: =519*52.2/12 -> 2257.65 | E59: =612*52.2/12 -> 2662.2 | F59: =(612+93)*52.2/12 -> 3066.75 | G59: =(612+93+93)*52.2/12 -> 3471.3 | H59: - | I59: =561*52.2/12 -> 2440.35 | J59: =637*52.2/12 -> 2770.95 | K59: =694*52.2/12 -> 3018.9 | L59: =757*52.2/12 -> 3292.95 | M59: =(757+63)*52.2/12 -> 3567 | N59: =(757+63+63)*52.2/12 -> 3841.05 | O59: -
A60: 64,001 - 85,000 | B60: =385*52.2/12 -> 1674.75 | C60: =475*52.2/12 -> 2066.25 | D60: =566*52.2/12 -> 2462.1 | E60: =659*52.2/12 -> 2866.65 | F60: =(659+93)*52.2/12 -> 3271.2 | G60: =(659+93+93)*52.2/12 -> 3675.75 | H60: =(659+93+93)*52.2/12 -> 3675.75 | I60: =608*52.2/12 -> 2644.8 | J60: =684*52.2/12 -> 2975.4 | K60: =741*52.2/12 -> 3223.35 | L60: =804*52.2/12 -> 3497.4 | M60: =(804+63)*52.2/12 -> 3771.45 | N60: =(804+63+63)*52.2/12 -> 4045.5 | O60: =(804+63+63)*52.2/12 -> 4045.5
A61: 85,001 - 107,000 | B61: =459*52.2/12 -> 1996.65 | C61: =549*52.2/12 -> 2388.15 | D61: =640*52.2/12 -> 2784 | E61: =733*52.2/12 -> 3188.55 | F61: =(733+93)*52.2/12 -> 3593.1 | G61: =(733+93+93)*52.2/12 -> 3997.65 | H61: =(733+93+93+93)*52.2/12 -> 4402.2 | I61: =682*52.2/12 -> 2966.7 | J61: =757*52.2/12 -> 3292.95 | K61: =815*52.2/12 -> 3545.25 | L61: =878*52.2/12 -> 3819.3 | M61: =(878+63)*52.2/12 -> 4093.35 | N61: =(878+63+63)*52.2/12 -> 4367.4 | O61: =(878+63+63)*52.2/12 -> 4367.4
A62: 107,001 - 128,000 | B62: =513*52.2/12 -> 2231.55 | C62: =603*52.2/12 -> 2623.05 | D62: =693*52.2/12 -> 3014.55 | E62: =(787)*52.2/12 -> 3423.45 | F62: =(787+94)*52.2/12 -> 3832.35 | G62: =(787+94+94)*52.2/12 -> 4241.25 | H62: =(787+94+94+94)*52.2/12 -> 4650.15 | I62: =735*52.2/12 -> 3197.25 | J62: =811*52.2/12 -> 3527.85 | K62: =868*52.2/12 -> 3775.8 | L62: =931*52.2/12 -> 4049.85 | M62: =(931+63)*52.2/12 -> 4323.9 | N62: =(931+63+63)*52.2/12 -> 4597.95 | O62: =(931+63+63)*52.2/12 -> 4597.95
A63: 128,001 - 150,000 | B63: =603*52.2/12 -> 2623.05 | C63: =693*52.2/12 -> 3014.55 | D63: =784*52.2/12 -> 3410.4 | E63: =(878)*52.2/12 -> 3819.3 | F63: =(878+94)*52.2/12 -> 4228.2 | G63: =(878+94+94)*52.2/12 -> 4637.1 | H63: =(878+94+94+94)*52.2/12 -> 5046 | I63: =826*52.2/12 -> 3593.1 | J63: =901*52.2/12 -> 3919.35 | K63: =959*52.2/12 -> 4171.65 | L63: =1022*52.2/12 -> 4445.7 | M63: =(1022+63)*52.2/12 -> 4719.75 | N63: =(1022+63+63)*52.2/12 -> 4993.8 | O63: =(1022+63+63)*52.2/12 -> 4993.8
A64: 150,001 - 171,000 | B64: =637*52.2/12 -> 2770.95 | C64: =727*52.2/12 -> 3162.45 | D64: =818*52.2/12 -> 3558.3 | E64: =(912)*52.2/12 -> 3967.2 | F64: =(912+94)*52.2/12 -> 4376.1 | G64: =(912+94+94)*52.2/12 -> 4785 | H64: =(912+94+94+94)*52.2/12 -> 5193.9 | I64: =860*52.2/12 -> 3741 | J64: =935*52.2/12 -> 4067.25 | K64: =993*52.2/12 -> 4319.55 | L64: =1056*52.2/12 -> 4593.6 | M64: =(1056+63)*52.2/12 -> 4867.65 | N64: =(1056+63+63)*52.2/12 -> 5141.7 | O64: =(1056+63+63)*52.2/12 -> 5141.7
A65: 171,001 - 214,000 | B65: =676*52.2/12 -> 2940.6 | C65: =766*52.2/12 -> 3332.1 | D65: =857*52.2/12 -> 3727.95 | E65: =(951)*52.2/12 -> 4136.85 | F65: =(951+94)*52.2/12 -> 4545.75 | G65: =(951+94+94)*52.2/12 -> 4954.65 | H65: =(951+94+94+94)*52.2/12 -> 5363.55 | I65: =899*52.2/12 -> 3910.65 | J65: =974*52.2/12 -> 4236.9 | K65: =1032*52.2/12 -> 4489.2 | L65: =1095*52.2/12 -> 4763.25 | M65: =(1095+63)*52.2/12 -> 5037.3 | N65: =(1095+63+63)*52.2/12 -> 5311.35 | O65: =(1095+63+63)*52.2/12 -> 5311.35
A66: 214,001 - 267,000 | B66: =781*52.2/12 -> 3397.35 | C66: =871*52.2/12 -> 3788.85 | D66: =962*52.2/12 -> 4184.7 | E66: =(1056)*52.2/12 -> 4593.6 | F66: =(1056+95)*52.2/12 -> 5006.85 | G66: =(1056+95+95)*52.2/12 -> 5420.1 | H66: =(1056+95+95+95)*52.2/12 -> 5833.35 | I66: =1004*52.2/12 -> 4367.4 | J66: =1079*52.2/12 -> 4693.65 | K66: =1136*52.2/12 -> 4941.6 | L66: =1199*52.2/12 -> 5215.65 | M66: =(1199+63)*52.2/12 -> 5489.7 | N66: =(1199+63+63)*52.2/12 -> 5763.75 | O66: =(1199+63+63)*52.2/12 -> 5763.75
A67: 267,000 - 321,000 | B67: =912*52.2/12 -> 3967.2 | C67: =1003*52.2/12 -> 4363.05 | D67: =1093*52.2/12 -> 4754.55 | E67: =(1188)*52.2/12 -> 5167.8 | F67: =(1188+95)*52.2/12 -> 5581.05 | G67: =(1188+95+95)*52.2/12 -> 5994.3 | H67: =(1188+95+95+95)*52.2/12 -> 6407.55 | I67: =1135*52.2/12 -> 4937.25 | J67: =1210*52.2/12 -> 5263.5 | K67: =1268*52.2/12 -> 5515.8 | L67: =1330*52.2/12 -> 5785.5 | M67: =(1330+63)*52.2/12 -> 6059.55 | N67: =(1330+63+63)*52.2/12 -> 6333.6 | O67: =(1330+63+63)*52.2/12 -> 6333.6
A68: 321,001 plus | B68: =944*52.2/12 -> 4106.4 | C68: =1034*52.2/12 -> 4497.9 | D68: =1125*52.2/12 -> 4893.75 | E68: =(1220)*52.2/12 -> 5307 | F68: =(1220+95)*52.2/12 -> 5720.25 | G68: =(1220+95+95)*52.2/12 -> 6133.5 | H68: =(1220+95+95+95)*52.2/12 -> 6546.75 | I68: =1167*52.2/12 -> 5076.45 | J68: =1241*52.2/12 -> 5398.35 | K68: =1299*52.2/12 -> 5650.65 | L68: =1362*52.2/12 -> 5924.7 | M68: =(1362+63)*52.2/12 -> 6198.75 | N68: =(1362+63+63)*52.2/12 -> 6472.8 | O68: =(1362+63+63)*52.2/12 -> 6472.8
A74: Household 1
A75: Household 2 | B75: Monthly Income | F75: Other Income | H75: Company
B77: Household 1 | C77: Household 2 | F77: Household 1 | G77: Household 2 | I77: Always Household1
A78: Applicant / Guarantor 1 | B78: =IF(EXACT(Serviceability!F18, "Household 1"),Serviceability!G18,0) -> 0 | C78: =IF(EXACT(Serviceability!F18, "Household 2"),Serviceability!G18,0) -> 0 | E78: Applicant / Guarantor 1 | F78: =IF(EXACT(Serviceability!F24, "Household 1"),Serviceability!L24,0) -> 0 | G78: =IF(EXACT(Serviceability!F24, "Household 2"),Serviceability!L24,0) -> 0 | H78: Applicant / Guarantor 1 | I78: =Serviceability!G15 -> 0
A79: Applicant / Guarantor 2 | B79: =IF(EXACT(Serviceability!F19, "Household 1"),Serviceability!G19,0) -> 0 | C79: =IF(EXACT(Serviceability!F19, "Household 2"),Serviceability!G19,0) -> 0 | E79: Applicant / Guarantor 2 | F79: =IF(EXACT(Serviceability!F25, "Household 1"),Serviceability!L25,0) -> 0 | G79: =IF(EXACT(Serviceability!F25, "Household 2"),Serviceability!L25,0) -> 0
A80: Applicant / Guarantor 3 | B80: =IF(EXACT(Serviceability!F20, "Household 1"),Serviceability!G20,0) -> 0 | C80: =IF(EXACT(Serviceability!F20, "Household 2"),Serviceability!G20,0) -> 0 | E80: Applicant / Guarantor 3 | F80: =IF(EXACT(Serviceability!F26, "Household 1"),Serviceability!L26,0) -> 0 | G80: =IF(EXACT(Serviceability!F26, "Household 2"),Serviceability!L26,0) -> 0
A81: Applicant / Guarantor 4 | B81: =IF(EXACT(Serviceability!F21, "Household 1"),Serviceability!G21,0) -> 0 | C81: =IF(EXACT(Serviceability!F21, "Household 2"),Serviceability!G21,0) -> 0 | E81: Applicant / Guarantor 4 | F81: =IF(EXACT(Serviceability!F27, "Household 1"),Serviceability!L27,0) -> 0 | G81: =IF(EXACT(Serviceability!F27, "Household 2"),Serviceability!L27,0) -> 0
A82: Applicant Totals | B82: =SUM(B78:B81,F82,I78) -> 0 | C82: =SUM(C78:C81,G82) -> 0 | E82: Applicant Totals | F82: =SUM(F78:F81)*12 -> 0 | G82: =SUM(G78:G81)*12 -> 0
A84: Adults - household | B84: =IF(AND(Tables!B82<=59999,Serviceability!G41=1),Tables!B55,IF(AND(Tables!B82<=89999,Serviceability!G41>=1),Tables!B56,"")) ->  | C84: =IF(C82<=59999,"test",IF(B2>93,"A",IF(B2>89,"A-",IF(B2>87,"B+",IF(B2>83,"B",IF(B2>79,"B-", IF(B2>77,"C+",IF(B2>73,"C",IF(B2>69,"C-",IF(B2>57,"D+",IF(B2>53,"D",IF(B2>49,"D-","")))))))))))) -> test
A85: Adults - household - new | B85: =IF(Tables!B82<=59999,#REF!,IF(Tables!B82<=89999,#REF!,"")) -> 
A86: Dependant children - household
A88: Adult | B88: =Serviceability!G41 -> 0 | C88: =Serviceability!G43 -> 0 | E88: =IF(Serviceability!G41>2, "Please call 1300 722 462 for assistance with calculation"," ") -> 
A89: Dependent | B89: =Serviceability!G42 -> 0 | C89: =Serviceability!G44 -> 0 | E89: =IF(Serviceability!G43>2, "Please call 1300 722 462 for assistance with calculation"," ") -> 
B90: ="Adult-" & B88 & ",Dependents-" & B89 -> Adult-0,Dependents-0 | C90: ="Adult-" & C88 & ",Dependents-" & C89 -> Adult-0,Dependents-0
A92: LookupKey | B92: Household | C92: Income Range | D92: Living Expense
A93: =B93 & ":" & C93 -> Adult-1,Dependents-0:0-21000 | B93: Adult-1,Dependents-0 | C93: 0-21000 | D93: =251*52.2/12 -> 1091.85
A94: =B94 & ":" & C94 -> Adult-1,Dependents-0:21000-32000 | B94: Adult-1,Dependents-0 | C94: 21000-32000 | D94: =265*52.2/12 -> 1152.75
A95: Adult-1,Dependents-0:32001-43000 | B95: Adult-1,Dependents-0 | C95: 32001-43000 | D95: =280*52.2/12 -> 1218
A96: Adult-1,Dependents-0:43001-53000 | B96: Adult-1,Dependents-0 | C96: 43001-53000 | D96: =301*52.2/12 -> 1309.35
A97: Adult-1,Dependents-0:53001-64000 | B97: Adult-1,Dependents-0 | C97: 53001-64000 | D97: =338*52.2/12 -> 1470.3
A98: Adult-1,Dependents-0:64001-85000 | B98: Adult-1,Dependents-0 | C98: 64001-85000 | D98: =385*52.2/12 -> 1674.75
A99: Adult-1,Dependents-0:85001-107000 | B99: Adult-1,Dependents-0 | C99: 85001-107000 | D99: =459*52.2/12 -> 1996.65
A100: Adult-1,Dependents-0:107001-128000 | B100: Adult-1,Dependents-0 | C100: 107001-128000 | D100: =513*52.2/12 -> 2231.55
A101: Adult-1,Dependents-0:128001-150000 | B101: Adult-1,Dependents-0 | C101: 128001-150000 | D101: =603*52.2/12 -> 2623.05
A102: Adult-1,Dependents-0:150001-171000 | B102: Adult-1,Dependents-0 | C102: 150001-171000 | D102: =637*52.2/12 -> 2770.95
A103: Adult-1,Dependents-0:171001-214000 | B103: Adult-1,Dependents-0 | C103: 171001-214000 | D103: =676*52.2/12 -> 2940.6
A104: Adult-1,Dependents-0:214001-267000 | B104: Adult-1,Dependents-0 | C104: 214001-267000 | D104: =781*52.2/12 -> 3397.35
A105: Adult-1,Dependents-0:267001-321000 | B105: Adult-1,Dependents-0 | C105: 267001-321000 | D105: =912*52.2/12 -> 3967.2
A106: Adult-1,Dependents-0:321000+ | B106: Adult-1,Dependents-0 | C106: 321000+ | D106: =944*52.2/12 -> 4106.4
A108: Adult-1,Dependents-1:0-21000 | B108: Adult-1,Dependents-1 | C108: 0-21000 | D108: =354*52.2/12 -> 1539.9
A109: Adult-1,Dependents-1:21000-32000 | B109: Adult-1,Dependents-1 | C109: 21000-32000 | D109: =354*52.2/12 -> 1539.9
A110: Adult-1,Dependents-1:32001-43000 | B110: Adult-1,Dependents-1 | C110: 32001-43000 | D110: =369*52.2/12 -> 1605.15
A111: Adult-1,Dependents-1:43001-53000 | B111: Adult-1,Dependents-1 | C111: 43001-53000 | D111: =391*52.2/12 -> 1700.85
A112: Adult-1,Dependents-1:53001-64000 | B112: Adult-1,Dependents-1 | C112: 53001-64000 | D112: =428*52.2/12 -> 1861.8
A113: Adult-1,Dependents-1:64001-85000 | B113: Adult-1,Dependents-1 | C113: 64001-85000 | D113: =475*52.2/12 -> 2066.25
A114: Adult-1,Dependents-1:85001-107000 | B114: Adult-1,Dependents-1 | C114: 85001-107000 | D114: =549*52.2/12 -> 2388.15
A115: Adult-1,Dependents-1:107001-128000 | B115: Adult-1,Dependents-1 | C115: 107001-128000 | D115: =603*52.2/12 -> 2623.05
A116: Adult-1,Dependents-1:128001-150000 | B116: Adult-1,Dependents-1 | C116: 128001-150000 | D116: =693*52.2/12 -> 3014.55
A117: Adult-1,Dependents-1:150001-171000 | B117: Adult-1,Dependents-1 | C117: 150001-171000 | D117: =727*52.2/12 -> 3162.45
A118: Adult-1,Dependents-1:171001-214000 | B118: Adult-1,Dependents-1 | C118: 171001-214000 | D118: =766*52.2/12 -> 3332.1
A119: Adult-1,Dependents-1:214001-267000 | B119: Adult-1,Dependents-1 | C119: 214001-267000 | D119: =871*52.2/12 -> 3788.85
A120: Adult-1,Dependents-1:267001-321000 | B120: Adult-1,Dependents-1 | C120: 267001-321000 | D120: =1003*52.2/12 -> 4363.05
A121: Adult-1,Dependents-1:321000+ | B121: Adult-1,Dependents-1 | C121: 321000+ | D121: =1034*52.2/12 -> 4497.9
A123: =B123 & ":" & C123 -> Adult-1,Dependents-2:0-21000 | B123: Adult-1,Dependents-2 | C123: 0-21000 | D123: =445*52.2/12 -> 1935.75
A124: Adult-1,Dependents-2:21000-32000 | B124: Adult-1,Dependents-2 | C124: 21000-32000 | D124: =445*52.2/12 -> 1935.75
A125: Adult-1,Dependents-2:32001-43000 | B125: Adult-1,Dependents-2 | C125: 32001-43000 | D125: =460*52.2/12 -> 2001
A126: Adult-1,Dependents-2:43001-53000 | B126: Adult-1,Dependents-2 | C126: 43001-53000 | D126: =481*52.2/12 -> 2092.35
A127: Adult-1,Dependents-2:53001-64000 | B127: Adult-1,Dependents-2 | C127: 53001-64000 | D127: =519*52.2/12 -> 2257.65
A128: Adult-1,Dependents-2:64001-85000 | B128: Adult-1,Dependents-2 | C128: 64001-85000 | D128: =566*52.2/12 -> 2462.1
A129: Adult-1,Dependents-2:85001-107000 | B129: Adult-1,Dependents-2 | C129: 85001-107000 | D129: =640*52.2/12 -> 2784
A130: Adult-1,Dependents-2:107001-128000 | B130: Adult-1,Dependents-2 | C130: 107001-128000 | D130: =693*52.2/12 -> 3014.55
A131: Adult-1,Dependents-2:128001-150000 | B131: Adult-1,Dependents-2 | C131: 128001-150000 | D131: =784*52.2/12 -> 3410.4
A132: Adult-1,Dependents-2:150001-171000 | B132: Adult-1,Dependents-2 | C132: 150001-171000 | D132: =818*52.2/12 -> 3558.3
A133: Adult-1,Dependents-2:171001-214000 | B133: Adult-1,Dependents-2 | C133: 171001-214000 | D133: =857*52.2/12 -> 3727.95
A134: Adult-1,Dependents-2:214001-267000 | B134: Adult-1,Dependents-2 | C134: 214001-267000 | D134: =962*52.2/12 -> 4184.7
A135: Adult-1,Dependents-2:267001-321000 | B135: Adult-1,Dependents-2 | C135: 267001-321000 | D135: =1093*52.2/12 -> 4754.55
A136: Adult-1,Dependents-2:321000+ | B136: Adult-1,Dependents-2 | C136: 321000+ | D136: =1125*52.2/12 -> 4893.75
A138: =B138 & ":" & C138 -> Adult-1,Dependents-3:0-21000 | B138: Adult-1,Dependents-3 | C138: 0-21000 | D138: =552*52.2/12 -> 2401.2
A139: Adult-1,Dependents-3:21000-32000 | B139: Adult-1,Dependents-3 | C139: 21000-32000 | D139: =552*52.2/12 -> 2401.2
A140: Adult-1,Dependents-3:32001-43000 | B140: Adult-1,Dependents-3 | C140: 32001-43000 | D140: =552*52.2/12 -> 2401.2
A141: Adult-1,Dependents-3:43001-53000 | B141: Adult-1,Dependents-3 | C141: 43001-53000 | D141: =574*52.2/12 -> 2496.9
A142: Adult-1,Dependents-3:53001-64000 | B142: Adult-1,Dependents-3 | C142: 53001-64000 | D142: =612*52.2/12 -> 2662.2
A143: Adult-1,Dependents-3:64001-85000 | B143: Adult-1,Dependents-3 | C143: 64001-85000 | D143: =659*52.2/12 -> 2866.65
A144: Adult-1,Dependents-3:85001-107000 | B144: Adult-1,Dependents-3 | C144: 85001-107000 | D144: =733*52.2/12 -> 3188.55
A145: Adult-1,Dependents-3:107001-128000 | B145: Adult-1,Dependents-3 | C145: 107001-128000 | D145: =(787)*52.2/12 -> 3423.45
A146: Adult-1,Dependents-3:128001-150000 | B146: Adult-1,Dependents-3 | C146: 128001-150000 | D146: =(878)*52.2/12 -> 3819.3
A147: Adult-1,Dependents-3:150001-171000 | B147: Adult-1,Dependents-3 | C147: 150001-171000 | D147: =(912)*52.2/12 -> 3967.2
A148: Adult-1,Dependents-3:171001-214000 | B148: Adult-1,Dependents-3 | C148: 171001-214000 | D148: =(951)*52.2/12 -> 4136.85
A149: Adult-1,Dependents-3:214001-267000 | B149: Adult-1,Dependents-3 | C149: 214001-267000 | D149: =(1056)*52.2/12 -> 4593.6
A150: Adult-1,Dependents-3:267001-321000 | B150: Adult-1,Dependents-3 | C150: 267001-321000 | D150: =(1188)*52.2/12 -> 5167.8
A151: Adult-1,Dependents-3:321000+ | B151: Adult-1,Dependents-3 | C151: 321000+ | D151: =(1220)*52.2/12 -> 5307
A154: =B154 & ":" & C154 -> Adult-1,Dependents-4:0-21000 | B154: Adult-1,Dependents-4 | C154: 0-21000 | D154: =(552+93)*52.2/12 -> 2805.75
A155: Adult-1,Dependents-4:21000-32000 | B155: Adult-1,Dependents-4 | C155: 21000-32000 | D155: =(552+93)*52.2/12 -> 2805.75
A156: Adult-1,Dependents-4:32001-43000 | B156: Adult-1,Dependents-4 | C156: 32001-43000 | D156: =(552+93)*52.2/12 -> 2805.75
A157: Adult-1,Dependents-4:43001-53000 | B157: Adult-1,Dependents-4 | C157: 43001-53000 | D157: =(574+93)*52.2/12 -> 2901.45
A158: Adult-1,Dependents-4:53001-64000 | B158: Adult-1,Dependents-4 | C158: 53001-64000 | D158: =(612+93)*52.2/12 -> 3066.75
A159: Adult-1,Dependents-4:64001-85000 | B159: Adult-1,Dependents-4 | C159: 64001-85000 | D159: =(659+93)*52.2/12 -> 3271.2
A160: Adult-1,Dependents-4:85001-107000 | B160: Adult-1,Dependents-4 | C160: 85001-107000 | D160: =(733+93)*52.2/12 -> 3593.1
A161: Adult-1,Dependents-4:107001-128000 | B161: Adult-1,Dependents-4 | C161: 107001-128000 | D161: =(787+94)*52.2/12 -> 3832.35
A162: Adult-1,Dependents-4:128001-150000 | B162: Adult-1,Dependents-4 | C162: 128001-150000 | D162: =(878+94)*52.2/12 -> 4228.2
A163: Adult-1,Dependents-4:150001-171000 | B163: Adult-1,Dependents-4 | C163: 150001-171000 | D163: =(912+94)*52.2/12 -> 4376.1
A164: Adult-1,Dependents-4:171001-214000 | B164: Adult-1,Dependents-4 | C164: 171001-214000 | D164: =(951+94)*52.2/12 -> 4545.75
A165: Adult-1,Dependents-4:214001-267000 | B165: Adult-1,Dependents-4 | C165: 214001-267000 | D165: =(1056+95)*52.2/12 -> 5006.85
A166: Adult-1,Dependents-4:267001-321000 | B166: Adult-1,Dependents-4 | C166: 267001-321000 | D166: =(1188+95)*52.2/12 -> 5581.05
A167: Adult-1,Dependents-4:321000+ | B167: Adult-1,Dependents-4 | C167: 321000+ | D167: =(1220+95)*52.2/12 -> 5720.25
A169: =B169 & ":" & C169 -> Adult-1,Dependents-5:0-21000 | B169: Adult-1,Dependents-5 | C169: 0-21000 | D169: =(612+93+93)*52.2/12 -> 3471.3
A170: Adult-1,Dependents-5:21000-32000 | B170: Adult-1,Dependents-5 | C170: 21000-32000 | D170: =(612+93+93)*52.2/12 -> 3471.3
A171: Adult-1,Dependents-5:32001-43000 | B171: Adult-1,Dependents-5 | C171: 32001-43000 | D171: =(612+93+93)*52.2/12 -> 3471.3
A172: Adult-1,Dependents-5:43001-53000 | B172: Adult-1,Dependents-5 | C172: 43001-53000 | D172: =(612+93+93)*52.2/12 -> 3471.3
A173: Adult-1,Dependents-5:53001-64000 | B173: Adult-1,Dependents-5 | C173: 53001-64000 | D173: =(612+93+93)*52.2/12 -> 3471.3
A174: Adult-1,Dependents-5:64001-85000 | B174: Adult-1,Dependents-5 | C174: 64001-85000 | D174: =(659+93+93)*52.2/12 -> 3675.75
A175: Adult-1,Dependents-5:85001-107000 | B175: Adult-1,Dependents-5 | C175: 85001-107000 | D175: =(733+93+93)*52.2/12 -> 3997.65
A176: Adult-1,Dependents-5:107001-128000 | B176: Adult-1,Dependents-5 | C176: 107001-128000 | D176: =(787+94+94)*52.2/12 -> 4241.25
A177: Adult-1,Dependents-5:128001-150000 | B177: Adult-1,Dependents-5 | C177: 128001-150000 | D177: =(878+94+94)*52.2/12 -> 4637.1
A178: Adult-1,Dependents-5:150001-171000 | B178: Adult-1,Dependents-5 | C178: 150001-171000 | D178: =(912+94+94)*52.2/12 -> 4785
A179: Adult-1,Dependents-5:171001-214000 | B179: Adult-1,Dependents-5 | C179: 171001-214000 | D179: =(951+94+94)*52.2/12 -> 4954.65
A180: Adult-1,Dependents-5:214001-267000 | B180: Adult-1,Dependents-5 | C180: 214001-267000 | D180: =(1056+95+95)*52.2/12 -> 5420.1
A181: Adult-1,Dependents-5:267001-321000 | B181: Adult-1,Dependents-5 | C181: 267001-321000 | D181: =(1188+95+95)*52.2/12 -> 5994.3
A182: Adult-1,Dependents-5:321000+ | B182: Adult-1,Dependents-5 | C182: 321000+ | D182: =(1220+95+95)*52.2/12 -> 6133.5
A184: =B184 & ":" & C184 -> Adult-1,Dependents-6:0-21000 | B184: Adult-1,Dependents-6 | C184: 0-21000 | D184: =(659+93+93)*52.2/12 -> 3675.75
A185: Adult-1,Dependents-6:21000-32000 | B185: Adult-1,Dependents-6 | C185: 21000-32000 | D185: 3675.75
A186: Adult-1,Dependents-6:32001-43000 | B186: Adult-1,Dependents-6 | C186: 32001-43000 | D186: 3675.75
A187: Adult-1,Dependents-6:43001-53000 | B187: Adult-1,Dependents-6 | C187: 43001-53000 | D187: 3675.75
A188: Adult-1,Dependents-6:53001-64000 | B188: Adult-1,Dependents-6 | C188: 53001-64000 | D188: 3675.75
A189: Adult-1,Dependents-6:64001-85000 | B189: Adult-1,Dependents-6 | C189: 64001-85000 | D189: 3675.75
A190: Adult-1,Dependents-6:85001-107000 | B190: Adult-1,Dependents-6 | C190: 85001-107000 | D190: =(733+93+93+93)*52.2/12 -> 4402.2
A191: Adult-1,Dependents-6:107001-128000 | B191: Adult-1,Dependents-6 | C191: 107001-128000 | D191: =(787+94+94+94)*52.2/12 -> 4650.15
A192: Adult-1,Dependents-6:128001-150000 | B192: Adult-1,Dependents-6 | C192: 128001-150000 | D192: =(878+94+94+94)*52.2/12 -> 5046
A193: Adult-1,Dependents-6:150001-171000 | B193: Adult-1,Dependents-6 | C193: 150001-171000 | D193: =(912+94+94+94)*52.2/12 -> 5193.9
A194: Adult-1,Dependents-6:171001-214000 | B194: Adult-1,Dependents-6 | C194: 171001-214000 | D194: =(951+94+94+94)*52.2/12 -> 5363.55
A195: Adult-1,Dependents-6:214001-267000 | B195: Adult-1,Dependents-6 | C195: 214001-267000 | D195: =(1056+95+95+95)*52.2/12 -> 5833.35
A196: Adult-1,Dependents-6:267001-321000 | B196: Adult-1,Dependents-6 | C196: 267001-321000 | D196: =(1188+95+95+95)*52.2/12 -> 6407.55
A197: Adult-1,Dependents-6:321000+ | B197: Adult-1,Dependents-6 | C197: 321000+ | D197: =(1220+95+95+95)*52.2/12 -> 6546.75
A199: =B199 & ":" & C199 -> Adult-2,Dependents-0:0-21000 | B199: Adult-2,Dependents-0 | C199: 0-21000 | D199: =487*52.2/12 -> 2118.45
A200: =B200 & ":" & C200 -> Adult-2,Dependents-0:21000-32000 | B200: Adult-2,Dependents-0 | C200: 21000-32000 | D200: =487*52.2/12 -> 2118.45
A201: Adult-2,Dependents-0:32001-43000 | B201: Adult-2,Dependents-0 | C201: 32001-43000 | D201: =502*52.2/12 -> 2183.7
A202: Adult-2,Dependents-0:43001-53000 | B202: Adult-2,Dependents-0 | C202: 43001-53000 | D202: =523*52.2/12 -> 2275.05
A203: Adult-2,Dependents-0:53001-64000 | B203: Adult-2,Dependents-0 | C203: 53001-64000 | D203: =561*52.2/12 -> 2440.35
A204: Adult-2,Dependents-0:64001-85000 | B204: Adult-2,Dependents-0 | C204: 64001-85000 | D204: =608*52.2/12 -> 2644.8
A205: Adult-2,Dependents-0:85001-107000 | B205: Adult-2,Dependents-0 | C205: 85001-107000 | D205: =682*52.2/12 -> 2966.7
A206: Adult-2,Dependents-0:107001-128000 | B206: Adult-2,Dependents-0 | C206: 107001-128000 | D206: =735*52.2/12 -> 3197.25
A207: Adult-2,Dependents-0:128001-150000 | B207: Adult-2,Dependents-0 | C207: 128001-150000 | D207: =826*52.2/12 -> 3593.1
A208: Adult-2,Dependents-0:150001-171000 | B208: Adult-2,Dependents-0 | C208: 150001-171000 | D208: =860*52.2/12 -> 3741
A209: Adult-2,Dependents-0:171001-214000 | B209: Adult-2,Dependents-0 | C209: 171001-214000 | D209: =899*52.2/12 -> 3910.65
A210: Adult-2,Dependents-0:214001-267000 | B210: Adult-2,Dependents-0 | C210: 214001-267000 | D210: =1004*52.2/12 -> 4367.4
A211: Adult-2,Dependents-0:267001-321000 | B211: Adult-2,Dependents-0 | C211: 267001-321000 | D211: =1135*52.2/12 -> 4937.25
A212: Adult-2,Dependents-0:321000+ | B212: Adult-2,Dependents-0 | C212: 321000+ | D212: =1167*52.2/12 -> 5076.45
A214: =B214 & ":" & C214 -> Adult-2,Dependents-1:0-21000 | B214: Adult-2,Dependents-1 | C214: 0-21000 | D214: =578*52.2/12 -> 2514.3
A215: Adult-2,Dependents-1:21000-32000 | B215: Adult-2,Dependents-1 | C215: 21000-32000 | D215: =578*52.2/12 -> 2514.3
A216: Adult-2,Dependents-1:32001-43000 | B216: Adult-2,Dependents-1 | C216: 32001-43000 | D216: =578*52.2/12 -> 2514.3
A217: Adult-2,Dependents-1:43001-53000 | B217: Adult-2,Dependents-1 | C217: 43001-53000 | D217: =599*52.2/12 -> 2605.65
A218: Adult-2,Dependents-1:53001-64000 | B218: Adult-2,Dependents-1 | C218: 53001-64000 | D218: =637*52.2/12 -> 2770.95
A219: Adult-2,Dependents-1:64001-85000 | B219: Adult-2,Dependents-1 | C219: 64001-85000 | D219: =684*52.2/12 -> 2975.4
A220: Adult-2,Dependents-1:85001-107000 | B220: Adult-2,Dependents-1 | C220: 85001-107000 | D220: =757*52.2/12 -> 3292.95
A221: Adult-2,Dependents-1:107001-128000 | B221: Adult-2,Dependents-1 | C221: 107001-128000 | D221: =811*52.2/12 -> 3527.85
A222: Adult-2,Dependents-1:128001-150000 | B222: Adult-2,Dependents-1 | C222: 128001-150000 | D222: =901*52.2/12 -> 3919.35
A223: Adult-2,Dependents-1:150001-171000 | B223: Adult-2,Dependents-1 | C223: 150001-171000 | D223: =935*52.2/12 -> 4067.25
A224: Adult-2,Dependents-1:171001-214000 | B224: Adult-2,Dependents-1 | C224: 171001-214000 | D224: =974*52.2/12 -> 4236.9
A225: Adult-2,Dependents-1:214001-267000 | B225: Adult-2,Dependents-1 | C225: 214001-267000 | D225: =1079*52.2/12 -> 4693.65
A226: Adult-2,Dependents-1:267001-321000 | B226: Adult-2,Dependents-1 | C226: 267001-321000 | D226: =1210*52.2/12 -> 5263.5
A227: Adult-2,Dependents-1:321000+ | B227: Adult-2,Dependents-1 | C227: 321000+ | D227: =1241*52.2/12 -> 5398.35
A229: =B229 & ":" & C229 -> Adult-2,Dependents-2:0-21000 | B229: Adult-2,Dependents-2 | C229: 0-21000 | D229: =636*52.2/12 -> 2766.6
A230: Adult-2,Dependents-2:21000-32000 | B230: Adult-2,Dependents-2 | C230: 21000-32000 | D230: =636*52.2/12 -> 2766.6
A231: Adult-2,Dependents-2:32001-43000 | B231: Adult-2,Dependents-2 | C231: 32001-43000 | D231: =636*52.2/12 -> 2766.6
A232: Adult-2,Dependents-2:43001-53000 | B232: Adult-2,Dependents-2 | C232: 43001-53000 | D232: =657*52.2/12 -> 2857.95
A233: Adult-2,Dependents-2:53001-64000 | B233: Adult-2,Dependents-2 | C233: 53001-64000 | D233: =694*52.2/12 -> 3018.9
A234: Adult-2,Dependents-2:64001-85000 | B234: Adult-2,Dependents-2 | C234: 64001-85000 | D234: =741*52.2/12 -> 3223.35
A235: Adult-2,Dependents-2:85001-107000 | B235: Adult-2,Dependents-2 | C235: 85001-107000 | D235: =815*52.2/12 -> 3545.25
A236: Adult-2,Dependents-2:107001-128000 | B236: Adult-2,Dependents-2 | C236: 107001-128000 | D236: =868*52.2/12 -> 3775.8
A237: Adult-2,Dependents-2:128001-150000 | B237: Adult-2,Dependents-2 | C237: 128001-150000 | D237: =959*52.2/12 -> 4171.65
... 70 more rows

Sheet HEM (hidden)
A1: Income Range ($) | B1: Single Adult | C1: Single Adult +1 | D1: Single Adult +2 | E1: Single Adult +3 | F1: Single Adult +4 | G1: Single Adult +5 | H1: Single Adult +6 | I1: Couple | J1: Couple +1 | K1: Couple +2 | L1: Couple +3 | M1: Couple +4 | N1: Couple +5 | O1: Couple +6
A2: 0 - 25,000 | B2: 1278.225554 | C2: 1836.584816 | D2: 2282.834585 | E2: 2795.771465 | F2: 3297.960782 | G2: 4023.689363 | H2: 4756.96367 | I2: 2511.564375 | J2: 2976.987464 | K2: 3277.526381 | L2: 3670.260393 | M2: 4275.679142 | N2: 4636.787207 | O2: 4997.895272
A3: 25,001 - 38,000 | B3: 1352.363626 | C3: 1836.584816 | D3: 2282.834585 | E3: 2795.771465 | F3: 3297.960782 | G3: 4023.689363 | H3: 4756.96367 | I3: 2511.564375 | J3: 2976.987464 | K3: 3277.526381 | L3: 3670.260393 | M3: 4275.679142 | N3: 4636.787207 | O3: 4997.895272
A4: 38,001 - 50,000 | B4: 1419.080997 | C4: 1903.953316 | D4: 2349.86239 | E4: 2795.771465 | F4: 3297.960782 | G4: 4023.689363 | H4: 4756.96367 | I4: 2578.690828 | J4: 2976.987464 | K4: 3277.526381 | L4: 3670.260393 | M4: 4275.679142 | N4: 4636.787207 | O4: 4997.895272
A5: 50,001 - 63,000 | B5: 1505.867429 | C5: 1991.586675 | D5: 2437.052429 | E5: 2882.518182 | F5: 3386.127869 | G5: 4023.689363 | H5: 4756.96367 | I5: 2666.009305 | J5: 3064.553588 | K5: 3364.937869 | L5: 3670.260393 | M5: 4275.679142 | N5: 4636.787207 | O5: 4997.895272
A6: 63,001 - 76,000 | B6: 1670.098012 | C6: 2157.419998 | D6: 2602.046715 | E6: 3046.673432 | F6: 3552.971093 | G6: 4023.689363 | H6: 4756.96367 | I6: 2831.246881 | J6: 3230.259724 | K6: 3530.351807 | L6: 3835.523549 | M6: 4275.679142 | N6: 4636.787207 | O6: 4997.895272
A7: 76,001 - 101,000 | B7: 1926.534409 | C7: 2416.359052 | D7: 2859.675725 | E7: 3302.992398 | F7: 3813.48725 | G7: 4285.22546 | H7: 4756.96367 | I7: 3089.255359 | J7: 3488.999871 | K7: 3788.635352 | L7: 4093.572423 | M7: 4534.864511 | N7: 4896.266799 | O7: 5257.669087
A8: 101,001 - 126,000 | B8: 2274.13614 | C8: 2767.353101 | D8: 3208.893878 | E8: 3650.434655 | F8: 4166.618809 | G8: 4639.739476 | H8: 5112.860143 | I8: 3438.988265 | J8: 3839.724426 | K8: 4138.741441 | L8: 4443.359652 | M8: 4886.192546 | N8: 5247.993617 | O8: 5609.794687
A9: 126,001 - 151,000 | B9: 2590.403582 | C9: 3086.707062 | D9: 3526.63214 | E9: 3966.557218 | F9: 4487.917767 | G9: 4962.296313 | H9: 5436.674859 | I9: 3757.194731 | J9: 4158.833222 | K9: 4457.287303 | L9: 4761.615609 | M9: 5205.85038 | N9: 5568.014292 | O9: 5930.178204
A10: 151,001 - 176,000 | B10: 2973.810284 | C10: 3473.855349 | D10: 3911.821817 | E10: 4349.788286 | F10: 4877.423838 | G10: 5353.327227 | H10: 5829.230615 | I10: 4142.951924 | J10: 4545.684622 | K10: 4843.45586 | L10: 5147.432979 | M10: 5593.367503 | N10: 5955.971397 | O10: 6318.575292
A11: 176,001 - 202,000 | B11: 3141.748368 | C11: 3643.432376 | D11: 4080.540988 | E11: 4517.649601 | F11: 5048.033784 | G11: 5524.605138 | H11: 6001.176493 | I11: 4311.919954 | J11: 4715.131467 | K11: 5012.603866 | L11: 5316.427332 | M11: 5763.105635 | N11: 6125.902056 | O11: 6488.698476
A12: 202,001 - 252,000 | B12: 3352.058391 | C12: 3855.795021 | D12: 4291.829232 | E12: 4727.863444 | F12: 5261.690037 | G12: 5739.097948 | H12: 6216.50586 | I12: 4523.519219 | J12: 4927.33084 | K12: 5224.429144 | L12: 5528.059481 | M12: 5975.670335 | N12: 6338.708114 | O12: 6701.745893
A13: 252,001 - 315,000 | B13: 3912.584598 | C13: 4421.791276 | D13: 4854.961958 | E13: 5288.132639 | F13: 5831.133094 | G13: 6310.770218 | H13: 6790.407342 | I13: 5087.48175 | J13: 5492.892586 | K13: 5788.993191 | L13: 6092.109869 | M13: 6542.205211 | N13: 6905.886076 | O13: 7269.566941
A14: 315,001 - 378,000 | B14: 4406.616037 | C14: 4920.644071 | D14: 5351.29092 | E14: 5781.937768 | F14: 6333.024107 | G14: 6814.626125 | H14: 7296.228142 | I14: 5584.542402 | J14: 5991.36274 | K14: 6286.583678 | L14: 6589.247956 | M14: 7041.53284 | N14: 7405.780449 | O14: 7770.028058
A15: 378,001 - 630,000 | B15: 4694.922022 | C15: 5211.763695 | D15: 5640.937689 | E15: 6070.111683 | F15: 6625.916769 | G15: 7108.665456 | H15: 7591.414142 | I15: 5874.615658 | J15: 6282.258551 | K15: 6576.966647 | L15: 6879.366564 | M15: 7332.929465 | N15: 7697.507917 | O15: 8062.086369
A19: Income Range lookup | B19: Row Offset Value | D19: Dependents/Household Number | F19: 1 | G19: 2 | H19: 3 | I19: 4 | J19: 5 | K19: 6 | L19: 7
A20: 25001 | B20: 1 | D20: 0 | F20: 0 | G20: 7 | H20: 13 | I20: 13 | J20: 13 | K20: 13 | L20: 13
A21: 38001 | B21: 2 | D21: 1 | F21: 1 | G21: 8 | H21: 13 | I21: 13 | J21: 13 | K21: 13 | L21: 13
A22: 50001 | B22: 3 | D22: 2 | F22: 2 | G22: 9 | H22: 13 | I22: 13 | J22: 13 | K22: 13 | L22: 13
A23: 63001 | B23: 4 | D23: 3 | F23: 3 | G23: 10 | H23: 13 | I23: 13 | J23: 13 | K23: 13 | L23: 13
A24: 76001 | B24: 5 | D24: 4 | F24: 4 | G24: 11 | H24: 13 | I24: 13 | J24: 13 | K24: 13 | L24: 13
A25: 101001 | B25: 6 | D25: 5 | F25: 5 | G25: 12 | H25: 13 | I25: 13 | J25: 13 | K25: 13 | L25: 13
A26: 126001 | B26: 7 | D26: 6 | F26: 6 | G26: 13 | H26: 13 | I26: 13 | J26: 13 | K26: 13 | L26: 13
A27: 151001 | B27: 8 | D27: 7 | F27: 13 | G27: 13 | H27: 13 | I27: 13 | J27: 13 | K27: 13 | L27: 13
A28: 176001 | B28: 9 | D28: 8 | F28: 13 | G28: 13 | H28: 13 | I28: 13 | J28: 13 | K28: 13 | L28: 13
A29: 202001 | B29: 10 | D29: 9 | F29: 13 | G29: 13 | H29: 13 | I29: 13 | J29: 13 | K29: 13 | L29: 13
A30: 252001 | B30: 11 | D30: 10 | F30: 13 | G30: 13 | H30: 13 | I30: 13 | J30: 13 | K30: 13 | L30: 13
A31: 315001 | B31: 12 | D31: 11 | F31: 13 | G31: 13 | H31: 13 | I31: 13 | J31: 13 | K31: 13 | L31: 13
A32: 378001 | B32: 13 | D32: 12 | F32: 13 | G32: 13 | H32: 13 | I32: 13 | J32: 13 | K32: 13 | L32: 13
D39: Household 1 | H39: Household 2
D40: Gross Income | F40: =Tables!B82 -> 0 | H40: Gross Income | J40: =Tables!C82 -> 0
D41: Single/Couple | F41: =Tables!B88 -> 0 | H41: Single/Couple | J41: =Tables!C88 -> 0
D42: Dependents | F42: =Tables!B89 -> 0 | H42: Dependents | J42: =Tables!C89 -> 0
D43: HEM Row Offset Value | F43: =IFERROR(VLOOKUP(F40,HEM!$A$20:$B$32,2,TRUE),0) -> 0 | H43: HEM Row Offset Value | J43: =IFERROR(VLOOKUP(J40,HEM!$A$20:$B$32,2,TRUE),0) -> 0
D44: HEM Column Offset Value | F44: =OFFSET($E$20,F42,F41) -> 0 | H44: HEM Column Offset Value | J44: =OFFSET($E$20,J42,J41) -> 0
D45: HEM Starting Value | F45: =OFFSET(B2,0,0) -> 1278.225554 | H45: HEM Starting Value | J45: =OFFSET(F2,0,0) -> 3297.960782
D46: HEM Min Living Expense | F46: =IF(F40=0, 0, OFFSET($B$2,F43,F44)) -> 0 | H46: HEM Min Living Expense | J46: =IF(J40=0,0,OFFSET($B$2,J43,J44)) -> 0

Sheet Serviceability Calc (hidden)
A1: Serviceability Cell Calculation
B3: =Serviceability!D49&" (After Tax Rates Applied)" -> Available Income (After Tax Rates Applied) | C3: =Serviceability!L49 -> 0
B4: Divided by
B5: =Serviceability!D72 -> Total Monthly Commitments | C5: =SUM(Serviceability!L55:L71) -> 0
A6: Less | B6: =Serviceability!$D$53&" - "&Serviceability!E55 -> RedZed Loan Applied For - Loan 1 | C6: =-Serviceability!L55 -> 0
A7: Less | B7: =Serviceability!$D$53&" - "&Serviceability!E56 -> RedZed Loan Applied For - Loan 2 | C7: =-Serviceability!L56 -> 0
A8: Less | B8: =Serviceability!$D$53&" - "&Serviceability!E57 -> RedZed Loan Applied For - Loan 3 | C8: =-Serviceability!L57 -> 0
A9: Plus | B9: =Serviceability!$D$53&" - "&Tables!A37 -> RedZed Loan Applied For - Buffered Loan 1 | C9: =Tables!B37 -> 0
A10: Plus | B10: =Serviceability!$D$53&" - "&Tables!A38 -> RedZed Loan Applied For - Buffered Loan 2 | C10: =Tables!B38 -> 0
A11: Plus | B11: =Serviceability!$D$53&" - "&Tables!A39 -> RedZed Loan Applied For - Buffered Loan 3 | C11: =Tables!B39 -> 0
A12: Less | B12: =Serviceability!$D$60&": "&Serviceability!E60 -> Existing Loans: Loan 1 - Existing Secured | D12: Does not apply to Commercial Loans
A13: Less | B13: =Serviceability!$D$60&": "&Serviceability!E61 -> Existing Loans: Loan 2 - Existing Secured | D13: Does not apply to Commercial Loans
A14: Plus | B14: =Serviceability!$D$60&": "&Tables!A43 -> Existing Loans: Buffered Loan 1 | D14: Does not apply to Commercial Loans
A15: Plus | B15: =Serviceability!$D$60&": "&Tables!A44 -> Existing Loans: Buffered Loan 2 | D15: Does not apply to Commercial Loans
A16: Plus | B16: =Tables!A48 -> Fees - Loan 1 | C16: =Tables!C48 -> 0
A17: Plus | B17: =Tables!A49 -> Fees - Loan 2 | C17: =Tables!C49 -> 0
A18: Plus | B18: =Tables!A50 -> Fees - Loan 3 | C18: =Tables!C50 -> 0
B20: Total Monthly Commitments (After Repayment Buffering & Fees) | C20: =SUM(C5:C19) -> 0
B22: =Serviceability!I75&" - Calculated as:" -> Fail - Calculated as: | C22: =ROUNDUP(C3/C20,2) -> 

Sheet Tax Calc (hidden)
A1: Tax Calc
A3: Annual Gross | D3: Gross | E3: Tax | F3: Medicare | G3: Income offset | H3: Net | I3: Net Monthly
A5: Applicant / G'Tor 1 | B5: Salary / Self Employed | D5: =Serviceability!G18 -> 0 | E5: =IF(D5<Tables!$A$6,0,IF(AND(D5>=Tables!$A$6,D5<Tables!$A$7),(D5-Tables!$A$6)*Tables!$C$6,IF(AND(D5>=Tables!$A$7,D5<Tables!$A$8),Tables!$D$7+(D5-Tables!$A$7)*Tables!$C$7,IF(AND(D5>=Tables!$A$8,D5<Tables!$A$9),Tables!$D$8+(D5-Tables!$A$8)*Tables!$C$8,IF(D5>=Tables!$A$9,Tables!$D$9+(D5-Tables!$A$9)*Tables!$C$9))))) -> 0 | F5: =D5*Tables!C$16 -> 0 | G5: =IFERROR(((D5-VLOOKUP(D5,$A$29:$D$33,1,TRUE))*VLOOKUP(D5,$A$29:$D$33,3,TRUE)+VLOOKUP(D5,$A$29:$D$33,4,TRUE)),0)+IFERROR((IF(D5>66667,66667-45001,(D5-VLOOKUP(D5,$A$41:$D$43,1,TRUE)))*VLOOKUP(D5,$A$41:$D$43,3,TRUE)+VLOOKUP(D5,$A$41:$D$43,4,TRUE)),0) -> 0 | H5: =D5-E5-F5+G5 -> 0 | I5: =H5/12 -> 0
A6: Applicant / G'Tor 2 | B6: Salary / Self Employed | D6: =Serviceability!G19 -> 0 | E6: =IF(D6<Tables!$A$6,0,IF(AND(D6>=Tables!$A$6,D6<Tables!$A$7),(D6-Tables!$A$6)*Tables!$C$6,IF(AND(D6>=Tables!$A$7,D6<Tables!$A$8),Tables!$D$7+(D6-Tables!$A$7)*Tables!$C$7,IF(AND(D6>=Tables!$A$8,D6<Tables!$A$9),Tables!$D$8+(D6-Tables!$A$8)*Tables!$C$8,IF(D6>=Tables!$A$9,Tables!$D$9+(D6-Tables!$A$9)*Tables!$C$9))))) -> 0 | F6: =D6*Tables!C$16 -> 0 | G6: =IFERROR(((D6-VLOOKUP(D6,$A$29:$D$33,1,TRUE))*VLOOKUP(D6,$A$29:$D$33,3,TRUE)+VLOOKUP(D6,$A$29:$D$33,4,TRUE)),0)+IFERROR((IF(D6>66667,66667-45001,(D6-VLOOKUP(D6,$A$41:$D$43,1,TRUE)))*VLOOKUP(D6,$A$41:$D$43,3,TRUE)+VLOOKUP(D6,$A$41:$D$43,4,TRUE)),0) -> 0 | H6: =D6-E6-F6+G6 -> 0 | I6: =H6/12 -> 0
A7: Applicant / G'Tor 3 | B7: Salary / Self Employed | D7: =Serviceability!G20 -> 0 | E7: =IF(D7<Tables!$A$6,0,IF(AND(D7>=Tables!$A$6,D7<Tables!$A$7),(D7-Tables!$A$6)*Tables!$C$6,IF(AND(D7>=Tables!$A$7,D7<Tables!$A$8),Tables!$D$7+(D7-Tables!$A$7)*Tables!$C$7,IF(AND(D7>=Tables!$A$8,D7<Tables!$A$9),Tables!$D$8+(D7-Tables!$A$8)*Tables!$C$8,IF(D7>=Tables!$A$9,Tables!$D$9+(D7-Tables!$A$9)*Tables!$C$9))))) -> 0 | F7: =D7*Tables!C$16 -> 0 | G7: 0 | H7: 0 | I7: =H7/12 -> 0
A8: Applicant / G'Tor 4 | B8: Salary / Self Employed | D8: =Serviceability!G21 -> 0 | E8: =IF(D8<Tables!$A$6,0,IF(AND(D8>=Tables!$A$6,D8<Tables!$A$7),(D8-Tables!$A$6)*Tables!$C$6,IF(AND(D8>=Tables!$A$7,D8<Tables!$A$8),Tables!$D$7+(D8-Tables!$A$7)*Tables!$C$7,IF(AND(D8>=Tables!$A$8,D8<Tables!$A$9),Tables!$D$8+(D8-Tables!$A$8)*Tables!$C$8,IF(D8>=Tables!$A$9,Tables!$D$9+(D8-Tables!$A$9)*Tables!$C$9))))) -> 0 | F8: =D8*Tables!C$16 -> 0 | G8: 0 | H8: 0 | I8: =H8/12 -> 0
A19: Test lower and middle income offset | D19: Formula | E19: ( income - income lower range ) *offset rate + baseline
A21: income | B21: offset baseline | C21: Income lower range | D21: Income - Lower range | E21: offset reduced % | F21: offset reduced amount | G21: offset amount
A22: 36000 | B22: =VLOOKUP(A22,A29:D33,4,TRUE) -> 0 | C22: =VLOOKUP(A22,A29:D33,1,TRUE) -> 1 | D22: =A22-C22 -> 35999 | E22: =VLOOKUP(A22,A29:D33,3,TRUE) -> 0 | F22: =+D22*E22 -> 0 | G22: =SUM(B22,F22) -> 0
A26: Lower and Middle income offset
A28: Wages Over | B28: Not to Exceed | C28: Tax Rate
A29: 1 | B29: 37000 | D29: 0
A30: =B29+1 -> 37001 | B30: 48000 | C30: 0 | D30: 0
A31: =B30+1 -> 48001 | B31: 90000 | C31: 0 | D31: 0
A32: =B31+1 -> 90001 | B32: 126000 | C32: 0 | D32: 0
A33: =B32+1 -> 126001 | C33: 0 | D33: 0
A38: Low Income offset
A40: Wages Over | B40: Not to Exceed | C40: Tax Rate
A41: 1 | B41: 37500 | D41: 0 | K41: =I41*52 -> 0
A42: =B41+1 -> 37501 | B42: 45000 | C42: 0 | D42: 0
A43: =B42+1 -> 45001 | B43: 66667 | C43: 0 | D43: 0
A48: Test low income
A50: income | B50: offset baseline | C50: Income lower range | D50: Income - Lower range | E50: offset reduced % | F50: offset reduced amount | G50: offset amount
A51: 36000 | B51: =VLOOKUP(A51,A41:D43,4,TRUE) -> 0 | C51: =VLOOKUP(A51,A41:D43,1,TRUE) -> 1 | D51: =IF(A51>66667, 66667-45001, A51-C51) -> 35999 | E51: =VLOOKUP(A51,A41:D43,3,TRUE) -> 0 | F51: =+D51*E51 -> 0 | G51: =SUM(B51,F51) -> 0

Sheet User Problems (hidden)
A1: # | B1: Date | C1: Submitted By | D1: Sheet Name (if applicable) | E1: Problem | F1: Initial Review Assessment | G1: Review Assessment Result Date | H1: Review With User | I1: Review Result or Action to Take | J1: Sheets Affected | K1: Development Version # | L1: Type | M1: Estimate (hrs) | N1: Actual | O1: Status | P1: Date Unit Tested | Q1: Release Version #
A2: 1 | B2: 2017-04-06 | C2: Bill Slattery | E2: 1) Create Commercial Serviceability Calaculator based on the existing Residential Calculator (K:\IT\Change_Work Requests\Work Request\WR004 - Commercial Calculator\02 Residential Calculator\2017 05 Changes\4. REDZED-Serviceability-170410-V6.4.xls) and including the interest stress test amendments specified in April. 2) Changed the heading from "RedZed Lending Solutions Pty Ltd (ACL 311128) Serviceability Calculator" to "RedZed Lending Solutions Pty Ltd (ACL 311128) Commercial Serviceability Calculator" 3) Changed the order in the Income Table section ie Company Income first. 4) Deleted references to Applicants in the Personal Income section | K2: ='Version Control'!C2 -> V0.1 Test | L2: Enhancement | O2: Completed | P2: 2017-04-10
A3: 2 | B3: 2017-04-24 | C3: Bill Slattery | D3: Serviceability Calc | E3: Add Serviceabilty Calculation Sheet as per Consolidated User Problem #131. | F3: Name as "Serviceability Calc" | K3: ='Version Control'!$C$3 -> V0.2 Test | L3: Enhancement | O3: Completed | P3: 2017-05-01
A4: 3 | B4: 2017-04-24 | C4: Mario Lorenzi | E4: Add two macros: -Ctl/Shift/B to unhide the calculation sheets -Ctl/Shift/H to hide the calculation sheets | K4: ='Version Control'!$C$3 -> V0.2 Test | L4: Enhancement | O4: Completed | P4: 2017-05-01
A5: 4 | B5: 2017-04-24 | C5: Mario Lorenzi | D5: Tables | E5: Change Company Tax Rate to 28.5% | F5: Set up a a new Company Tax Table on Tables sheet. Change Company Income Calculation (Cell K18) to reference the new Company Tax Table. | K5: ='Version Control'!$C$3 -> V0.2 Test | L5: Data Maintenance | O5: Completed | P5: 2017-05-01 | Q5: ='Version Control'!$C$8 -> v1.0
A6: 5 | B6: 2017-04-24 | C6: Mario Lorenzi | D6: Tables | E6: There is no minimum interest rate for Commercial Loans. | F6: Set Minimum Rate (Cell B34) to Zero% | K6: ='Version Control'!$C$3 -> V0.2 Test | L6: Data Maintenance | O6: Completed | P6: 2017-05-01 | Q6: ='Version Control'!$C$8 -> v1.0
A7: 6 | B7: 2017-04-24 | C7: Mario Lorenzi | D7: Serviceability | E7: Add Interest Only Term cells for RedZed Loans 1 and 2 on Serviceability sheet. Change the Rate buffering calculation to use the net term (Total Term less Interest Only Term) | K7: ='Version Control'!$C$3 -> V0.2 Test | L7: Enhancement | O7: Completed | P7: 2017-05-01 | Q7: ='Version Control'!$C$8 -> v1.0
A8: 7 | B8: 2017-04-24 | C8: Mario Lorenzi | D8: Serviceability | E8: Add Source of Other Incomes cell for each of the Other Regular Monthly Income lines on the Serviceability sheets. | K8: ='Version Control'!$C$3 -> V0.2 Test | L8: Enhancement | O8: Completed | P8: 2017-05-01 | Q8: ='Version Control'!$C$8 -> v1.0
A9: 8 | B9: 2017-04-24 | C9: Mario Lorenzi | D9: Serviceability | E9: Change Company Income heading to display "Company Income (if applicable)" | K9: ='Version Control'!$C$3 -> V0.2 Test | L9: Enhancement | O9: Completed | P9: 2017-05-01 | Q9: ='Version Control'!$C$8 -> v1.0
A10: 9 | B10: 2017-04-24 | C10: Mario Lorenzi | D10: Serviceability | E10: Swap columns displaying Existing & New v Rental Income/Rental Income | K10: ='Version Control'!$C$3 -> V0.2 Test | L10: Enhancement | O10: Completed | P10: 2017-05-01 | Q10: ='Version Control'!$C$8 -> v1.0
A11: 10 | B11: 2017-04-24 | C11: Mario Lorenzi | D11: Serviceability | E11: Check Monthly Service Fee calculation - to assume entry of Commercial Loans only - calculated at 1% of Loan Amount divided by 12 | K11: ='Version Control'!$C$3 -> V0.2 Test | L11: Enhancement | O11: Completed | P11: 2017-05-01 | Q11: ='Version Control'!$C$8 -> v1.0
A12: 11 | B12: 2017-04-24 | C12: Mario Lorenzi | D12: Serviceability | E12: Change Personal Income descriptors from "Guarantor 1, 2, 3, and 4" to "Applicant / Guarantor 1, 2, 3, and 4" | K12: ='Version Control'!$C$3 -> V0.2 Test | L12: Enhancement | O12: Completed | P12: 2017-05-01 | Q12: ='Version Control'!$C$8 -> v1.0
A13: 12 | B13: 2017-04-24 | C13: Mario Lorenzi | D13: Serviceability | E13: Add New Serviceability Calculation qualification wording i.e. "If Commercial Loan LVR is greater than 70%, serviceability needs to be greater than 1.25% - in this case please call RedZed on 1300 722 462 to discuss your options." It now displays on the line under "Must Be > 1.1 | K13: ='Version Control'!$C$3 -> V0.2 Test | L13: Enhancement | O13: Completed | P13: 2017-05-01 | Q13: ='Version Control'!$C$8 -> v1.0
A14: 13 | B14: 2017-04-24 | C14: Mario Lorenzi | D14: Tables | E14: Tables Sheet - Highlight in yellow those data cells that can be changed to reflect legislation or company policy changes. | K14: ='Version Control'!$C$3 -> V0.2 Test | L14: Enhancement | O14: Completed | P14: 2017-05-01 | Q14: ='Version Control'!$C$8 -> v1.0
A15: 14 | B15: 2017-06-08 | C15: Mario Lorenzi | D15: Tax Calc | E15: Tax Calc Sheet - delete Other Income Cells A10 to I13 | K15: ='Version Control'!$C$4 -> V0.4 PENDING | L15: Enhancement | O15: Completed | P15: 2017-06-15 | Q15: ='Version Control'!$C$8 -> v1.0
A16: 15 | B16: 2017-06-08 | C16: Mario Lorenzi | D16: Tax Calc | E16: Tax Calc Sheet - delete "Correct Formula For Serviceability - Don’t Think Arm Can Do This" Cells L1 to R25 | K16: ='Version Control'!$C$4 -> V0.4 PENDING | L16: Enhancement | O16: Completed | P16: 2017-06-15 | Q16: ='Version Control'!$C$8 -> v1.0
A17: 16 | B17: 2017-06-08 | C17: Mario Lorenzi | D17: Serviceability | E17: Fix formatting of Financier Cells for Existing Loans | K17: ='Version Control'!$C$4 -> V0.4 PENDING | L17: Bug | O17: Completed | P17: 2017-06-15 | Q17: ='Version Control'!$C$8 -> v1.0
A18: 17 | B18: 2017-06-08 | C18: Mario Lorenzi | D18: Serviceability Calc | E18: Existing Loans Secured 1 & 2 are not buffered for commercial loans | F18: Delete buffering from Serviceability Calc by blanking calculation cells. Leave structure the same as for Residential Calculator. Add note that buffering does not apply. | K18: ='Version Control'!$C$4 -> V0.4 PENDING | L18: Bug | O18: Completed | P18: 2017-06-15 | Q18: ='Version Control'!$C$8 -> v1.0
A19: 18 | B19: 2017-06-19 | C19: Trevor Smith | D19: User Problems Version Control | E19: Add Sheets for User Problems and Version Control. | K19: ='Version Control'!$C$4 -> V0.4 PENDING | L19: Enhancement | O19: Completed | P19: 2017-06-20 | Q19: ='Version Control'!$C$8 -> v1.0
A20: 19 | B20: 2017-06-19 | C20: Angelo Klidomitis | D20: Serviceability | E20: Change Look & Feel as per 4.0 ServiceabilityCalculator.xlsx | K20: ='Version Control'!$C$4 -> V0.4 PENDING | L20: Enhancement | O20: Completed | P20: 2017-06-20 | Q20: ='Version Control'!$C$8 -> v1.0
A21: 20 | B21: 2017-06-20 | C21: Angelo Klidomitis | D21: Serviceability | E21: Wording to the left of the wording "Must Be > 1.1." I’d have the wording in bold red , non italicised and increased to 12 font so it stands out more. | K21: ='Version Control'!C5 -> v0.5 PENDING | L21: Enhancement | O21: Completed | P21: 2017-06-21 | Q21: ='Version Control'!$C$8 -> v1.0
A22: 21 | B22: 2017-05-22 | C22: Mario Lorenzi & Bill Slattery | D22: Serviceability | E22: Increase readability of printed version of the sheet | K22: ='Version Control'!C6 -> v0.6 PENDING | L22: Enhancement | O22: Completed | P22: 2017-06-26 | Q22: ='Version Control'!$C$8 -> v1.0
A23: 22 | B23: 2017-06-29 | C23: Mario Lorenzi | D23: Serviceability | E23: 1) Borders missing for Enter Source of Income, Rental Income, Maintenance, & Other Fixed Monthly Repayments. 2) Enter a zero in each dollar entry cell so the user is aware it is available for entry. | K23: ='Version Control'!C7 -> v0.7 PENDING | L23: Enhancement & Bug | O23: Completed | P23: 2017-06-29 | Q23: ='Version Control'!$C$8 -> v1.0
A24: 23
A25: 24
A26: 25
A27: 26
A28: 27
A29: 28
A30: 29
A31: 30
A32: 31
A33: 32
A34: 33

Sheet Version Control (hidden)
A1: Name | B1: Date | C1: Version # | D1: Development Version File Name | E1: Changes | F1: Released Version | H1: Current Version | I1: =VLOOKUP($J$1,B2:$I$3983,8,FALSE) -> V10.27 240315 | J1: =MAX(B2:B3983) -> 2024-03-15
A2: Trevor Smith | B2: 2017-04-10 | C2: V0.1 Test | D2: K:\IT\Change_Work Requests\Work Request\WR004 - Commercial Calculator\01 Commercial Calculator\2017 05 New Development\4. REDZED-Serviceability Commercial -170410-V0.1 Test.xls | E2: User Problem 1 | G2: =IFERROR(VLOOKUP(MONTH(B2),'Day and Months Table'!A:B,2,FALSE)&VLOOKUP(DAY(B2),'Day and Months Table'!A:B,2,FALSE),"N/A") -> 0410 | H2: =RIGHT(YEAR(B2),2)&G2 -> 170410 | I2: =CONCATENATE(C2," ",H2) -> V0.1 Test 170410
A3: Trevor Smith | B3: 2017-05-01 | C3: V0.2 Test | D3: K:\IT\Change_Work Requests\Work Request\WR004 - Commercial Calculator\01 Commercial Calculator\2017 05 New Development\4. REDZED-Serviceability Commercial -170410-V0.2 Test.xls | E3: User Problems 2 -12 inclusive | G3: =IFERROR(VLOOKUP(MONTH(B3),'Day and Months Table'!A:B,2,FALSE)&VLOOKUP(DAY(B3),'Day and Months Table'!A:B,2,FALSE),"N/A") -> 0501 | H3: =RIGHT(YEAR(B3),2)&G3 -> 170501 | I3: =CONCATENATE(C3," ",H3) -> V0.2 Test 170501
A4: Trevor Smith | B4: 2017-06-20 | C4: V0.4 PENDING | D4: K:\IT\Change_Work Requests\Work Request\WR004 - Commercial Calculator\01 Commercial Calculator\2017 05 New Development\4. REDZED-Serviceability Commercial -170410-V0.4 Test.xls | E4: User Problems 13 - 19 inclusive | F4: Issued to Mario Lorenzi for testing 20 June 2017 | G4: =IFERROR(VLOOKUP(MONTH(B4),'Day and Months Table'!A:B,2,FALSE)&VLOOKUP(DAY(B4),'Day and Months Table'!A:B,2,FALSE),"N/A") -> 0620 | H4: 170620 | I4: V0.4 PENDING 170620
A5: Trevor Smith | B5: 2017-06-21 | C5: v0.5 PENDING | D5: K:\IT\Change_Work Requests\Work Request\WR004 - Commercial Calculator\01 Commercial Calculator\2017 05 New Development\4. REDZED-Serviceability Commercial -170410-V0.5 Test.xls | E5: User Problem 20 | G5: =IFERROR(VLOOKUP(MONTH(B5),'Day and Months Table'!A:B,2,FALSE)&VLOOKUP(DAY(B5),'Day and Months Table'!A:B,2,FALSE),"N/A") -> 0621 | H5: 170621 | I5: v0.5 PENDING 170621
A6: Trevor Smith | B6: 2017-06-29 | C6: v0.6 PENDING | D6: K:\IT\Change_Work Requests\Work Request\WR004 - Commercial Calculator\01 Commercial Calculator\2017 05 New Development\4. REDZED-Serviceability Commercial -170410-V0.6 Test.xls This version was copied and renamed and saved to the new development and release folder structure 26 June 2017. The new location and file name is K:\Credit\Servicing Calculator - Commercial\Development - Commercial\REDZED-Serviceability Commercial V0.6.xlsm. The released version number for this series of amendments will be v1.0 with a date added in the format yymmdd | E6: A renamed version + User Problem 21 | G6: =IFERROR(VLOOKUP(MONTH(B6),'Day and Months Table'!A:B,2,FALSE)&VLOOKUP(DAY(B6),'Day and Months Table'!A:B,2,FALSE),"N/A") -> 0629 | H6: 170629 | I6: v0.6 PENDING 170629
A7: Trevor Smith | B7: 2017-06-29 | C7: v0.7 PENDING | D7: K:\Credit\Servicing Calculator - Commercial\Development - Commercial\REDZED-Serviceability Commercial V0.7.xlsm | E7: User Problem 22 | G7: =IFERROR(VLOOKUP(MONTH(B7),'Day and Months Table'!A:B,2,FALSE)&VLOOKUP(DAY(B7),'Day and Months Table'!A:B,2,FALSE),"N/A") -> 0629 | H7: 170629 | I7: v0.7 PENDING 170629
A8: Trevor Smith | B8: 2017-06-30 | C8: v1.0 | F8: K:\Credit\Servicing Calculator - Commercial\Current Released Version- Commercial\REDZED-Serviceability Commercial V1.0.xlsm | G8: =IFERROR(VLOOKUP(MONTH(B8),'Day and Months Table'!A:B,2,FALSE)&VLOOKUP(DAY(B8),'Day and Months Table'!A:B,2,FALSE),"N/A") -> 0630 | H8: 170630 | I8: v1.0 170630
A9: Mayank Badhen | B9: 2018-06-25 | C9: V1.6A | D9: Updated the living expense | G9: =IFERROR(VLOOKUP(MONTH(B9),'Day and Months Table'!A:B,2,FALSE)&VLOOKUP(DAY(B9),'Day and Months Table'!A:B,2,FALSE),"N/A") -> 0625 | H9: 180625 | I9: V1.6A 180625
A10: Mayank Badhen | B10: 2018-07-25 | C10: V1.7 | D10: updated living expense for Company selecting household is mandatory updated the tax scale compnay income is always attached to household 1 | G10: =IFERROR(VLOOKUP(MONTH(B10),'Day and Months Table'!A:B,2,FALSE)&VLOOKUP(DAY(B10),'Day and Months Table'!A:B,2,FALSE),"N/A") -> 0725 | H10: 180725 | I10: V1.7 180725
A11: Mayank Badhen | B11: 2018-12-11 | C11: V1.7.1 | D11: IF more then three adult in one household please display the mssage | G11: =IFERROR(VLOOKUP(MONTH(B11),'Day and Months Table'!A:B,2,FALSE)&VLOOKUP(DAY(B11),'Day and Months Table'!A:B,2,FALSE),"N/A") -> 1211 | H11: 181211 | I11: V1.7.1 181211
A12: Mayank Badhen | B12: 2019-06-20 | C12: V1.8 | D12: credit card obligations | G12: =IFERROR(VLOOKUP(MONTH(B12),'Day and Months Table'!A:B,2,FALSE)&VLOOKUP(DAY(B12),'Day and Months Table'!A:B,2,FALSE),"N/A") -> 0620 | H12: 190620 | I12: V1.8 190620
A13: Mayank Badhen | B13: 2019-12-02 | C13: V1.9 | D13: IO term issue fixed | G13: =IFERROR(VLOOKUP(MONTH(B13),'Day and Months Table'!A:B,2,FALSE)&VLOOKUP(DAY(B13),'Day and Months Table'!A:B,2,FALSE),"N/A") -> 1202 | H13: 191202 | I13: V1.9 191202
G14: =IFERROR(VLOOKUP(MONTH(B14),'Day and Months Table'!A:B,2,FALSE)&VLOOKUP(DAY(B14),'Day and Months Table'!A:B,2,FALSE),"N/A") -> N/A | H14: 00N/A | I14: 00N/A
G15: =IFERROR(VLOOKUP(MONTH(B15),'Day and Months Table'!A:B,2,FALSE)&VLOOKUP(DAY(B15),'Day and Months Table'!A:B,2,FALSE),"N/A") -> N/A | H15: 00N/A | I15: 00N/A
A16: John Jiang | B16: 2020-07-30 | C16: V10.0 | D16: a. Introduction of a traffic light Pass, Refer to RZ or Fail notification. Pass >1.10, Refer >1.05 – 1.10, Fail below 1.05. The introduction of the Refer category is designed to encourage brokers to Refer deals where we don’t quite meet servicing requirements, but in discussion with RZ we may jointly find a way forward. Potentially these deals may be currently being sent to other lenders who have lower servicing ratio benchmarks). b. Creating a blank template. c. Removal of the tax calculation for company income to fall in line with the policy which states that we assess on NPBT. Other general changes including ensuring; 1. Living expenses were consistent across all selections (there were some errors & inconsistencies) 2. Tax scales were checked and amended for consistency. | G16: =IFERROR(VLOOKUP(MONTH(B16),'Day and Months Table'!A:B,2,FALSE)&VLOOKUP(DAY(B16),'Day and Months Table'!A:B,2,FALSE),"N/A") -> 0730 | H16: 200730 | I16: V10.0 200730
A17: John Jiang | B17: 2020-08-13 | C17: V10.0 Commercial | D17: changed the footer and version control sheet | G17: =IFERROR(VLOOKUP(MONTH(B17),'Day and Months Table'!A:B,2,FALSE)&VLOOKUP(DAY(B17),'Day and Months Table'!A:B,2,FALSE),"N/A") -> 0813 | H17: 200813 | I17: V10.0 Commercial 200813
A18: John Jiang | B18: 2020-11-16 | C18: V10.1 | D18: changed tax bracket according to 2020 new regulation | G18: =IFERROR(VLOOKUP(MONTH(B18),'Day and Months Table'!A:B,2,FALSE)&VLOOKUP(DAY(B18),'Day and Months Table'!A:B,2,FALSE),"N/A") -> 1116 | H18: 201116 | I18: V10.1 201116
A19: John Jiang | B19: 2020-12-17 | C19: V10.11 | D19: change interest floor rate from 0% to 6% | G19: =IFERROR(VLOOKUP(MONTH(B19),'Day and Months Table'!A:B,2,FALSE)&VLOOKUP(DAY(B19),'Day and Months Table'!A:B,2,FALSE),"N/A") -> 1217 | H19: 201217 | I19: V10.11 201217
A20: John Jiang | B20: 2021-01-15 | C20: V10.12 | D20: Update HEM data according the Sept 2020 data | G20: =IFERROR(VLOOKUP(MONTH(B20),'Day and Months Table'!A:B,2,FALSE)&VLOOKUP(DAY(B20),'Day and Months Table'!A:B,2,FALSE),"N/A") -> 0115 | H20: 210115 | I20: V10.12 210115
A21: Shun | B21: 2022-04-08 | C21: v10.13 | D21: Update HEM data according the Dec 2021 data | G21: =IFERROR(VLOOKUP(MONTH(B21),'Day and Months Table'!A:B,2,FALSE)&VLOOKUP(DAY(B21),'Day and Months Table'!A:B,2,FALSE),"N/A") -> 0408 | H21: 220408 | I21: v10.13 220408
A22: Shun | B22: 2022-06-16 | C22: v10.16 | D22: Update Buffer and Floor Rates && Update HEM Rate | G22: =IFERROR(VLOOKUP(MONTH(B22),'Day and Months Table'!A:B,2,FALSE)&VLOOKUP(DAY(B22),'Day and Months Table'!A:B,2,FALSE),"N/A") -> 0616 | H22: 220616 | I22: v10.16 220616
A23: Shun | B23: 2022-07-15 | C23: v10.17 | D23: Update the tax rate | G23: =IFERROR(VLOOKUP(MONTH(B23),'Day and Months Table'!A:B,2,FALSE)&VLOOKUP(DAY(B23),'Day and Months Table'!A:B,2,FALSE),"N/A") -> 0715 | H23: 220715 | I23: v10.17 220715
A24: Shun | B24: 2022-08-22 | C24: v10.18 | D24: Update Hem Rate | G24: =IFERROR(VLOOKUP(MONTH(B24),'Day and Months Table'!A:B,2,FALSE)&VLOOKUP(DAY(B24),'Day and Months Table'!A:B,2,FALSE),"N/A") -> 0822 | H24: 220822 | I24: v10.18 220822
A25: Shun | B25: 2022-11-28 | C25: v10.19 | D25: Update Hem Rate | G25: =IFERROR(VLOOKUP(MONTH(B25),'Day and Months Table'!A:B,2,FALSE)&VLOOKUP(DAY(B25),'Day and Months Table'!A:B,2,FALSE),"N/A") -> 1128 | H25: 221128 | I25: v10.19 221128
A26: Shun | B26: 2023-03-06 | C26: v10.20 | D26: Update Hem Rate | G26: =IFERROR(VLOOKUP(MONTH(B26),'Day and Months Table'!A:B,2,FALSE)&VLOOKUP(DAY(B26),'Day and Months Table'!A:B,2,FALSE),"N/A") -> 0306 | H26: 230306 | I26: v10.20 230306
A27: Shun | B27: 2023-05-23 | C27: v10.21 | D27: Update Hem Rate | G27: =IFERROR(VLOOKUP(MONTH(B27),'Day and Months Table'!A:B,2,FALSE)&VLOOKUP(DAY(B27),'Day and Months Table'!A:B,2,FALSE),"N/A") -> 0523 | H27: 230523 | I27: v10.21 230523
A28: Shun | B28: 2023-08-03 | C28: v10.22 | D28: Split 3 Loans | G28: =IFERROR(VLOOKUP(MONTH(B28),'Day and Months Table'!A:B,2,FALSE)&VLOOKUP(DAY(B28),'Day and Months Table'!A:B,2,FALSE),"N/A") -> 0803 | H28: 230803 | I28: v10.22 230803
A29: Shun | B29: 2023-08-15 | C29: v10.23 | D29: Update APR Buffer | G29: =IFERROR(VLOOKUP(MONTH(B29),'Day and Months Table'!A:B,2,FALSE)&VLOOKUP(DAY(B29),'Day and Months Table'!A:B,2,FALSE),"N/A") -> 0815 | H29: 230815 | I29: v10.23 230815
A30: Shun | B30: 2023-08-23 | C30: V10.24 | D30: Update Hem Rate | G30: =IFERROR(VLOOKUP(MONTH(B30),'Day and Months Table'!A:B,2,FALSE)&VLOOKUP(DAY(B30),'Day and Months Table'!A:B,2,FALSE),"N/A") -> 0823 | H30: 230823 | I30: V10.24 230823
A31: Shun | B31: 2023-11-20 | C31: V10.25 | D31: Update Hem Rate | G31: =IFERROR(VLOOKUP(MONTH(B31),'Day and Months Table'!A:B,2,FALSE)&VLOOKUP(DAY(B31),'Day and Months Table'!A:B,2,FALSE),"N/A") -> 1120 | H31: 231120 | I31: V10.25 231120
A32: Shun | B32: 2024-02-06 | C32: V10.26 | D32: Update Company Tax Rate | G32: =IFERROR(VLOOKUP(MONTH(B32),'Day and Months Table'!A:B,2,FALSE)&VLOOKUP(DAY(B32),'Day and Months Table'!A:B,2,FALSE),"N/A") -> 0206 | H32: 240206 | I32: V10.26 240206
A33: Shun | B33: 2024-03-15 | C33: V10.27 | D33: Update Hem Rate | G33: =IFERROR(VLOOKUP(MONTH(B33),'Day and Months Table'!A:B,2,FALSE)&VLOOKUP(DAY(B33),'Day and Months Table'!A:B,2,FALSE),"N/A") -> 0315 | H33: 240315 | I33: V10.27 240315

Sheet Day and Months Table (hidden)
A1: 1 | B1: 01
A2: 2 | B2: 02
A3: 3 | B3: 03
A4: 4 | B4: 04
A5: 5 | B5: 05
A6: 6 | B6: 06
A7: 7 | B7: 07
A8: 8 | B8: 08
A9: 9 | B9: 09
A10: 10 | B10: 10
A11: 11 | B11: 11
A12: 12 | B12: 12
A13: 13 | B13: 13
A14: 14 | B14: 14
A15: 15 | B15: 15
A16: 16 | B16: 16
A17: 17 | B17: 17
A18: 18 | B18: 18
A19: 19 | B19: 19
A20: 20 | B20: 20
A21: 21 | B21: 21
A22: 22 | B22: 22
A23: 23 | B23: 23
A24: 24 | B24: 24
A25: 25 | B25: 25
A26: 26 | B26: 26
A27: 27 | B27: 27
A28: 28 | B28: 28
A29: 29 | B29: 29
A30: 30 | B30: 30
A31: 31 | B31: 31
